bitfinex/quotes_ETHUSD_20251021
["timestamp","ask_amount","ask_price","bid_price","bid_amount"]
[1761042310212,45.46929425,3870.7,3870.6,0.002]
[1761042310510,51.24863956,3870.7,3870.6,0.002]
[1761042310714,45.46929425,3870.7,3870.6,0.002]
[1761042312213,39.29544607,3870.7,3870.6,0.002]
[1761042312408,45.07479138,3870.7,3870.6,0.002]
[1761042312923,2.58377903,3870.3,3870.0,0.002]
[1761042313161,2.58449947,3869.3,3869.1,0.4636]
[1761042313282,11.6238589,3869.2,3869.1,0.4636]
[1761042314309,5.84451359,3869.2,3869.1,0.4636]
[1761042316185,11.6238589,3869.2,3869.1,0.4636]
[1761042316380,19.7768689,3869.2,3869.1,0.4636]
[1761042316586,17.1821189,3869.2,3869.1,0.4636]
[1761042318586,10.530262,3869.1,3868.7,0.002]
[1761042318926,8.49292612,3868.8,3868.7,0.002]
[1761042319127,11.75292612,3868.8,3868.7,0.002]
[1761042319788,11.75292612,3868.8,3868.7,0.4317]
[1761042320132,9.16814531,3868.8,3868.7,0.4317]
[1761042321024,3.3888,3868.8,3868.7,0.4317]
[1761042322033,3.3888,3868.8,3868.7,0.87686217]
[1761042323151,2.58444635,3869.4,3868.7,3.46169915]
[1761042323152,0.1288,3869.3,3868.7,3.46169915]
[1761042323315,2.71324917,3869.3,3868.8,0.4297]
[1761042323520,0.1288,3869.3,3869.2,0.2349]
[1761042324145,5.77934531,3870.0,3869.2,0.2349]
[1761042324146,3.26,3869.5,3869.2,0.6646]
[1761042324326,3.26,3869.5,3869.2,1.00239704]
[1761042324528,3.26,3869.5,3869.3,0.4297]
[1761042326424,0.1288,3869.6,3869.3,0.4297]
[1761042328359,8.49244415,3869.6,3869.4,0.4297]
[1761042328563,5.90814531,3869.6,3869.4,0.4297]
[1761042329082,5.90814531,3869.6,3869.4,0.75461649]
[1761042329083,3.26,3869.5,3869.4,0.75461649]
[1761042330086,0.1288,3869.6,3869.4,0.4297]
[1761042330292,0.1288,3869.6,3869.5,0.45554313]
[1761042330459,3.26,3869.7,3869.5,0.45554313]
[1761042330660,3.26,3869.7,3869.5,0.4297]
[1761042331708,5.84418023,3869.7,3869.5,0.4297]
[1761042332088,2.58424643,3869.6,3869.5,0.4297]
[1761042332519,5.97300484,3869.7,3869.2,0.2349]
[1761042332687,5.97300484,3869.7,3869.5,0.4536]
[1761042333089,2.58424643,3869.6,3869.5,0.4536]
[1761042333588,2.58424643,3869.6,3869.2,0.6885]
[1761042333589,2.58431942,3869.5,3869.2,0.6885]
[1761042333802,5.77934531,3869.3,3868.7,0.44716217]
[1761042334008,2.58458809,3869.1,3868.9,0.4536]
[1761042334385,8.49259313,3869.3,3868.9,0.4536]
[1761042334386,5.90814531,3869.3,3868.9,0.4536]
[1761042334595,2.58464719,3869.0,3868.9,0.4536]
[1761042335609,5.97340535,3869.1,3868.9,0.4536]
[1761042337617,3.3888,3869.1,3868.9,0.4536]
[1761042338303,3.26,3869.4,3868.9,0.4536]
[1761042338507,0.1288,3869.3,3869.0,0.02584647]
[1761042338696,1.728,3869.6,3868.9,0.78132949]
[1761042338896,4.31226324,3869.6,3869.3,0.2319]
[1761042339328,1.728,3869.6,3869.4,0.4536]
[1761042339530,3.261,3869.7,3869.4,0.4536]
[1761042340230,5.84518436,3869.7,3869.4,0.4536]
[1761042341534,3.261,3869.7,3869.4,0.4536]
[1761042341705,2.58504988,3869.9,3869.4,3.36493861]
[1761042341706,0.001,3869.9,3869.4,3.36493861]
[1761042341910,3.261,3869.8,3869.5,0.4536]
[1761042343340,2.58422457,3869.7,3869.5,0.4536]
[1761042343513,5.84513701,3869.8,3869.5,0.4536]
[1761042343719,2.58428125,3869.6,3869.3,0.2319]
[1761042344025,3.261,3869.8,3869.3,0.2319]
[1761042344026,2.5843295,3869.5,3869.3,0.2319]
[1761042344227,2.5843295,3869.5,3869.4,0.4536]
[1761042344631,2.58427297,3869.6,3869.4,0.4536]
[1761042344944,2.58431361,3869.5,3869.3,0.2319]
[1761042345127,2.58431361,3869.5,3869.4,0.4536]
[1761042345833,5.84531361,3869.5,3869.4,0.4536]
[1761042347849,2.58438,3869.4,3869.3,0.2319]
[1761042348248,2.58432664,3869.5,3869.1,0.4536]
[1761042348448,2.58432664,3869.5,3869.1,0.6855]
[1761042348650,0.1288,3869.4,3869.1,0.6855]
[1761042348852,2.71319178,3869.4,3869.2,0.4536]
[1761042349549,0.1288,3869.4,3869.2,0.4536]
[1761042352251,0.1288,3869.4,3869.2,0.47944513]
[1761042352942,0.1288,3869.4,3869.2,0.8092439]
[1761042353120,1.739,3869.7,3869.3,2.58442688]
[1761042353437,1.739,3869.7,3869.3,3.03802688]
[1761042353642,1.739,3869.7,3869.4,0.4536]
[1761042355968,1.739,3869.7,3869.4,3.03797961]
[1761042356168,1.739,3869.7,3869.4,0.4536]
[1761042356370,1.739,3869.7,3869.1,0.3607]
[1761042356546,1.739,3869.7,3869.5,0.4536]
[1761042358442,0.001,3869.9,3869.5,0.4536]
[1761042361678,2.58505067,3869.9,3869.5,0.4536]
[1761042362169,0.001,3869.9,3869.5,0.4536]
[1761042363366,0.001,3869.9,3869.6,2.58424536]
[1761042363767,0.001,3869.9,3869.7,0.4399]
[1761042366667,0.001,3869.9,3869.7,3.02407341]
[1761042367184,0.001,3869.9,3869.8,0.4399]
[1761042367678,0.001,3869.9,3869.6,0.5687]
[1761042367876,0.001,3869.9,3869.4,0.4399]
[1761042367877,2.58509509,3869.9,3869.4,0.4399]
[1761042369058,0.001,3869.9,3869.4,0.4399]
[1761042369289,2.58505899,3869.9,3869.4,0.4399]
[1761042370381,0.001,3869.9,3869.4,3.02425948]
[1761042370585,0.001,3869.9,3869.4,1.36284573]
[1761042370784,0.001,3869.9,3869.5,3.02417098]
[1761042371091,0.001,3869.9,3869.6,2.58424005]
[1761042371396,0.001,3869.9,3869.6,3.02414005]
[1761042371595,0.001,3869.9,3869.7,3.02403847]
[1761042371796,0.001,3869.9,3869.8,0.97021265]
[1761042372389,0.001,3869.9,3869.8,0.4399]
[1761042373779,0.001,3869.9,3869.8,3.02401287]
[1761042374091,0.001,3869.9,3869.8,3.15281287]
[1761042379070,0.001,3869.9,3869.8,0.1288]
[1761042379272,0.001,3869.9,3869.8,0.597]
[1761042381599,0.001,3869.9,3869.8,3.18111287]
[1761042385011,0.001,3869.9,3869.8,0.1288]
[1761042385309,0.001,3869.9,3869.8,0.4682]
[1761042385994,0.001,3869.9,3869.8,3.18111287]
[1761042386197,0.001,3869.9,3869.8,4.08354789]
[1761042392782,0.001,3869.9,3869.8,4.10938901]
[1761042392981,0.001,3869.9,3869.8,4.21234789]
[1761042394222,0.001,3869.9,3869.8,4.29023502]
[1761042394516,0.001,3869.9,3869.8,3.831]
[1761042395784,0.001,3869.9,3869.8,6.41511287]
[1761042397985,0.001,3869.9,3869.8,0.572]
[1761042398181,0.001,3869.9,3869.8,3.3878]
[1761042398619,0.001,3869.9,3869.8,2.5166]
[1761042400333,0.001,3869.9,3869.8,0.1288]
[1761042403207,0.001,3869.9,3869.7,3.259]
[1761042403532,2.58416213,3869.8,3869.5,3.259]
[1761042404330,2.87546385,3869.9,3869.5,3.259]
[1761042404530,2.58506385,3869.9,3869.5,3.7022]
[1761042404731,2.58424643,3869.6,3869.5,3.259]
[1761042404934,0.2904,3869.8,3869.4,0.1308]
[1761042405243,2.58425946,3869.6,3869.4,0.002]
[1761042405445,2.5850958,3869.9,3869.4,0.002]
[1761042405633,2.5850958,3869.9,3869.5,0.572]
[1761042406934,2.58412517,3869.8,3869.5,0.1288]
[1761042407136,2.58418863,3869.7,3869.5,0.1288]
[1761042408535,0.1924,3869.9,3869.5,0.1308]
[1761042408718,2.58424643,3869.6,3869.5,0.1308]
[1761042408906,2.58424643,3869.6,3869.5,0.002]
[1761042409107,0.1288,3869.7,3869.5,0.002]
[1761042409444,2.71298507,3869.7,3869.5,0.002]
[1761042410866,2.58424643,3869.6,3869.5,0.002]
[1761042414340,2.68324643,3869.6,3869.5,0.002]
[1761042414957,2.58424643,3869.6,3869.5,0.002]
[1761042416139,4.31224643,3869.6,3869.5,0.002]
[1761042416344,4.41124643,3869.6,3869.5,0.002]
[1761042416633,4.31224643,3869.6,3869.5,0.002]
[1761042416833,4.41124643,3869.6,3869.5,0.002]
[1761042417755,4.31224643,3869.6,3869.5,0.002]
[1761042419364,29.12036743,3869.6,3869.5,0.002]
[1761042419566,26.89832543,3869.6,3869.5,0.002]
[1761042420437,30.00003143,3869.6,3869.5,0.002]
[1761042420637,29.10948243,3869.6,3869.5,0.002]
[1761042421179,21.91835043,3869.6,3869.5,0.002]
[1761042421471,22.66606043,3869.6,3869.5,0.002]
[1761042421853,22.74388103,3869.6,3869.5,0.002]
[1761042422390,24.65972703,3869.6,3869.5,0.002]
[1761042422555,24.23372703,3869.6,3869.5,0.002]
[1761042422755,20.08167603,3869.6,3869.5,0.002]
[1761042422999,18.45351403,3869.6,3869.5,0.002]
[1761042423382,18.67895603,3869.6,3869.5,0.002]
[1761042424286,19.15149624,3869.6,3869.5,0.002]
[1761042424590,24.44911813,3869.6,3869.5,0.002]
[1761042425471,28.56804613,3869.6,3869.5,0.002]
[1761042425671,26.59954613,3869.6,3869.5,0.002]
[1761042425871,20.59561312,3869.6,3869.5,0.002]
[1761042426455,13.95847212,3869.6,3869.5,0.002]
[1761042426660,28.35364712,3869.6,3869.5,0.002]
[1761042427461,13.95847212,3869.6,3869.5,0.002]
[1761042427678,31.93657312,3869.6,3869.5,0.002]
[1761042428576,39.82898695,3869.6,3869.5,0.002]
[1761042429670,41.48842995,3869.6,3869.5,0.002]
[1761042430084,32.35924295,3869.6,3869.5,0.002]
[1761042430696,32.68924295,3869.6,3869.5,0.002]
[1761042430884,27.50389212,3869.6,3869.5,0.002]
[1761042431286,27.40489212,3869.6,3869.5,0.002]
[1761042431596,21.68897712,3869.6,3869.5,0.002]
[1761042431797,16.95972212,3869.6,3869.5,0.002]
[1761042432592,16.93889012,3869.6,3869.5,0.002]
[1761042433204,17.34433219,3869.6,3869.5,0.002]
[1761042433428,16.93889012,3869.6,3869.5,0.002]
[1761042433604,13.86047212,3869.6,3869.5,0.002]
[1761042433786,16.60810512,3869.6,3869.5,0.002]
[1761042434509,16.34402812,3869.6,3869.5,0.002]
[1761042434707,16.98903912,3869.6,3869.5,0.002]
[1761042435037,4.82126741,3869.6,3869.5,0.002]
[1761042435326,3.26,3869.7,3869.5,0.4637]
[1761042435617,2.58424643,3869.6,3869.5,0.4637]
[1761042435827,3.26,3869.7,3869.5,0.4637]
[1761042436282,2.58424643,3869.6,3869.5,0.4637]
[1761042438507,2.71392481,3869.8,3869.5,0.4637]
[1761042438508,2.5841977,3869.7,3869.5,0.4637]
[1761042438712,2.58424643,3869.6,3869.5,0.4637]
[1761042439217,0.1298,3869.8,3869.5,0.4637]
[1761042439218,0.001,3869.8,3869.5,0.61834313]
[1761042439416,0.001,3869.8,3869.5,0.48954313]
[1761042439616,0.001,3869.8,3869.7,0.1288]
[1761042439836,0.001,3869.8,3869.7,0.44656884]
[1761042440028,0.001,3869.8,3869.7,0.90716884]
[1761042440622,0.001,3869.8,3869.7,0.5894]
[1761042441615,0.001,3869.8,3869.7,3.19942144]
[1761042441828,0.001,3869.8,3869.7,3.17357965]
[1761042442623,0.001,3869.8,3869.7,0.5894]
[1761042447133,0.001,3869.8,3869.7,0.1288]
[1761042447367,8.36431758,3869.8,3869.7,0.1288]
[1761042447649,8.36431758,3869.8,3869.6,0.002]
[1761042447650,2.58417965,3869.7,3869.6,0.002]
[1761042447817,12.37499365,3869.7,3869.6,0.002]
[1761042448918,11.72203965,3869.7,3869.6,0.002]
[1761042449666,5.52223165,3869.7,3869.6,0.002]
[1761042450224,2.58417965,3869.7,3869.6,0.002]
[1761042451054,2.58417965,3869.7,3869.6,0.4338]
[1761042451233,2.58417965,3869.7,3869.6,0.002]
[1761042461637,2.58417965,3869.7,3869.6,0.4338]
[1761042461836,2.58417965,3869.7,3869.6,0.002]
[1761042467891,10.83087865,3869.7,3869.6,0.002]
[1761042468046,8.57965865,3869.7,3869.6,0.002]
[1761042468246,2.71297965,3869.7,3869.6,0.002]
[1761042469548,26.73982465,3869.7,3869.6,0.002]
[1761042469877,18.12543994,3869.7,3869.6,0.002]
[1761042470179,17.82365397,3869.7,3869.6,0.002]
[1761042470555,20.76192197,3869.7,3869.6,0.002]
[1761042471644,22.27272697,3869.7,3869.6,0.002]
[1761042471846,20.26556197,3869.7,3869.6,0.002]
[1761042472565,21.38984597,3869.7,3869.6,0.002]
[1761042473259,22.08536536,3869.7,3869.6,0.002]
[1761042473667,25.98065536,3869.7,3869.6,0.002]
[1761042474673,32.03131736,3869.7,3869.6,0.002]
[1761042474882,30.23131736,3869.7,3869.6,0.002]
[1761042475356,29.30105036,3869.7,3869.6,0.002]
[1761042475673,5.21123336,3869.7,3869.6,0.002]
[1761042475878,29.30105036,3869.7,3869.6,0.002]
[1761042476273,28.30105036,3869.7,3869.6,0.002]
[1761042476479,28.70644643,3869.7,3869.6,0.002]
[1761042476884,28.69644643,3869.7,3869.6,0.002]
[1761042477882,2.58431321,3869.5,3869.4,0.002]
[1761042478082,26.79632255,3869.5,3869.4,0.002]
[1761042478398,26.89622255,3869.5,3869.4,0.002]
[1761042478685,22.00293394,3869.5,3869.4,0.002]
[1761042478885,34.90804194,3869.5,3869.4,0.002]
[1761042479062,34.90804194,3869.5,3869.2,1e-08]
[1761042479063,2.58444679,3869.3,3869.2,1e-08]
[1761042479266,32.46888579,3869.3,3869.2,1e-08]
[1761042479455,33.26430518,3869.3,3869.2,1e-08]
[1761042479866,35.71841515,3869.3,3869.2,1e-08]
[1761042480387,33.21124839,3869.1,3869.0,1e-08]
[1761042480554,40.41050512,3869.1,3869.0,1e-08]
[1761042480888,40.51040512,3869.1,3869.0,1e-08]
[1761042481086,42.11861712,3869.1,3869.0,1e-08]
[1761042481387,42.11861712,3869.1,3868.6,0.002]
[1761042481388,29.86268062,3868.7,3868.6,0.002]
[1761042481701,32.59079135,3868.7,3868.6,0.002]
[1761042481872,32.69069135,3868.7,3868.6,0.002]
[1761042482062,38.93495935,3868.7,3868.6,0.002]
[1761042482402,33.92706435,3868.7,3868.6,0.002]
[1761042482953,34.33264433,3868.7,3868.6,0.002]
[1761042483160,36.13322533,3868.7,3868.6,0.002]
[1761042483382,35.72764535,3868.7,3868.6,0.002]
[1761042483582,35.25282935,3868.7,3868.6,0.002]
[1761042484079,42.78398435,3868.7,3868.6,0.002]
[1761042484706,39.93224635,3868.7,3868.6,0.002]
[1761042485158,35.55511135,3868.7,3868.6,0.002]
[1761042486361,39.69256335,3868.7,3868.6,0.002]
[1761042486771,39.7493908,3868.7,3868.6,0.002]
[1761042486954,39.3337618,3868.7,3868.6,0.002]
[1761042487388,43.0701198,3868.7,3868.6,0.002]
[1761042487591,42.4839928,3868.7,3868.6,0.002]
[1761042487790,40.2325418,3868.7,3868.6,0.002]
[1761042488288,43.1894928,3868.7,3868.6,0.002]
[1761042488679,46.4484928,3868.7,3868.6,0.002]
[1761042489806,7.26000784,3868.7,3868.6,0.002]
[1761042490107,11.857105,3869.7,3868.6,0.4341]
[1761042490403,5.86025353,3869.6,3868.7,0.02584847]
[1761042490576,2.58432574,3869.5,3868.7,2.61068058]
[1761042490783,2.58424934,3869.6,3868.8,0.75850806]
[1761042491079,1.728,3869.4,3869.0,2.58459218]
[1761042491281,6.375548,3869.6,3868.9,0.4321]
[1761042491494,2.58424671,3869.6,3868.9,3.01680425]
[1761042491797,6.455254,3869.6,3869.5,0.2193]
[1761042492097,1.728,3869.6,3869.5,0.2193]
[1761042492297,1.728,3869.6,3869.5,0.6514]
[1761042492671,6.72326443,3869.6,3869.0,0.30168042]
[1761042492907,6.50373734,3869.4,3869.0,0.4321]
[1761042493105,2.584458,3869.3,3869.1,0.2193]
[1761042493598,2.58451359,3869.2,3869.1,0.2193]
[1761042493993,2.58445716,3869.3,3869.1,0.6514]
[1761042495066,5.86045716,3869.3,3869.1,0.6514]
[1761042495306,5.86045716,3869.3,3869.1,0.2193]
[1761042495472,5.86045716,3869.3,3869.2,0.4321]
[1761042497916,5.86145716,3869.3,3869.2,0.4321]
[1761042499409,5.86145716,3869.3,3869.1,0.2193]
[1761042499611,3.277,3869.3,3869.2,0.4557]
[1761042500688,3.277,3869.3,3869.2,0.7816692]
[1761042500689,0.001,3869.3,3869.2,0.7816692]
[1761042504620,0.001,3869.3,3869.2,0.4557]
[1761042508415,0.001,3869.3,3869.2,0.48154513]
[1761042508731,0.001,3869.3,3869.2,3.06605872]
[1761042509119,0.001,3869.3,3869.2,3.16901359]
[1761042509318,0.001,3869.3,3869.1,3.4903]
[1761042509519,0.001,3869.3,3869.1,3.946]
[1761042509720,0.001,3869.3,3869.2,0.4557]
[1761042514331,0.001,3869.3,3869.1,3.4903]
[1761042514533,0.001,3869.3,3869.1,0.6591]
[1761042514702,0.001,3869.3,3868.9,3.27]
[1761042515125,0.001,3869.3,3869.0,0.4398]
[1761042516136,0.001,3869.3,3869.1,0.2258]
[1761042516831,0.001,3869.3,3869.2,0.4398]
[1761042518337,0.001,3869.3,3869.1,0.2258]
[1761042518539,0.001,3869.3,3869.2,0.4398]
[1761042519035,0.001,3869.3,3869.2,0.79066973]
[1761042519217,0.001,3869.3,3869.2,0.46564513]
[1761042520457,0.001,3869.3,3869.2,0.4398]
[1761042520751,0.001,3869.3,3869.2,0.46564513]
[1761042528274,0.001,3869.3,3869.2,0.4398]
[1761042528423,0.001,3869.3,3869.1,3.266]
[1761042528624,0.001,3869.3,3869.1,3.7058]
[1761042529662,0.001,3869.3,3869.1,3.266]
[1761042530073,0.001,3869.3,3869.1,3.7058]
[1761042532769,0.001,3869.3,3869.0,0.1308]
[1761042533072,0.001,3869.3,3869.0,0.002]
[1761042533073,8.36566898,3869.1,3869.0,0.002]
[1761042533257,2.58458039,3869.1,3869.0,0.002]
[1761042534537,2.68358039,3869.1,3869.0,0.002]
[1761042535279,2.58458039,3869.1,3869.0,0.002]
[1761042536676,2.53458039,3869.1,3869.0,0.002]
[1761042536875,8.36562561,3869.2,3869.0,0.002]
[1761042537301,2.58458039,3869.1,3869.0,0.002]
[1761042540294,5.78108859,3869.2,3869.0,0.002]
[1761042540478,2.58458039,3869.1,3869.0,0.002]
[1761042541280,8.36562545,3869.2,3869.0,0.002]
[1761042541610,2.58458039,3869.1,3869.0,0.002]
[1761042542478,8.36562707,3869.2,3869.0,0.002]
[1761042542669,6.25593058,3869.3,3869.0,0.002]
[1761042542870,6.25593058,3869.3,3869.0,0.4345]
[1761042543117,3.67145759,3869.3,3869.1,0.2304]
[1761042543271,3.3948,3869.3,3869.1,0.2304]
[1761042543466,3.3948,3869.3,3869.2,0.4325]
[1761042543975,3.3948,3869.3,3869.1,0.2304]
[1761042543976,0.001,3869.3,3869.1,0.2304]
[1761042544179,0.001,3869.3,3869.2,0.4325]
[1761042545410,0.001,3869.3,3869.1,0.2304]
[1761042545580,0.001,3869.3,3869.1,0.6629]
[1761042545779,0.001,3869.3,3869.2,0.4325]
[1761042551095,0.001,3869.3,3869.1,0.2324]
[1761042551495,0.001,3869.3,3869.1,0.002]
[1761042554122,0.001,3869.3,3869.1,0.6649]
[1761042554420,0.001,3869.3,3869.1,1.00294574]
[1761042554629,0.001,3869.3,3869.2,0.4325]
[1761042555827,0.001,3869.3,3869.1,0.002]
[1761042556148,0.001,3869.3,3869.1,0.4345]
[1761042556496,0.001,3869.3,3869.1,0.6649]
[1761042556802,0.001,3869.3,3869.2,0.33803288]
[1761042557016,0.001,3869.3,3869.2,0.77053288]
[1761042558334,0.001,3869.3,3869.2,0.4325]
[1761042559107,0.001,3869.3,3869.1,0.002]
[1761042560502,0.001,3869.3,3869.1,0.4359]
[1761042561652,0.001,3869.3,3869.2,0.4339]
[1761042562550,0.001,3869.3,3869.1,0.002]
[1761042562761,0.001,3869.3,3869.1,0.4359]
[1761042564452,0.001,3869.3,3869.1,0.97974551]
[1761042564975,0.001,3869.3,3869.2,0.4339]
[1761042566558,0.001,3869.3,3869.2,6.27841359]
[1761042566758,0.001,3869.3,3869.2,6.40721359]
[1761042574978,0.001,3869.3,3869.2,3.8227]
[1761042575277,0.001,3869.3,3869.2,3.26]
[1761042581605,0.001,3869.3,3869.1,0.002]
[1761042581910,0.001,3869.3,3869.1,3.262]
[1761042588864,0.001,3869.3,3869.1,0.002]
[1761042589497,0.001,3869.3,3869.1,0.4668]
[1761042590266,0.001,3869.3,3869.1,1.36950083]
[1761042591200,0.001,3869.3,3869.1,3.95406149]
[1761042591418,0.001,3869.3,3869.2,0.4648]
[1761042594622,0.001,3869.3,3869.2,3.04931359]
[1761042595220,0.001,3869.3,3869.2,0.4648]
[1761042595621,0.001,3869.3,3869.1,2.80856249]
[1761042595822,0.001,3869.3,3869.1,1.02175013]
[1761042597224,0.001,3869.3,3869.1,3.6063213]
[1761042600439,0.001,3869.3,3869.2,3.04931359]
[1761042601031,0.001,3869.3,3869.2,3.07515872]
[1761042601233,0.001,3869.3,3869.2,3.04931359]
[1761042601434,0.001,3869.3,3869.2,4.00748359]
[1761042601628,0.001,3869.3,3869.2,1.42297]
[1761042601943,0.001,3869.3,3869.2,0.95817]
[1761042602110,0.001,3869.3,3869.1,0.33495013]
[1761042602645,0.001,3869.3,3869.1,0.76385013]
[1761042603049,0.001,3869.3,3869.1,0.002]
[1761042603946,0.001,3869.3,3869.1,0.4309]
[1761042604147,0.001,3869.3,3869.1,0.002]
[1761042604851,0.001,3869.3,3869.1,0.4309]
[1761042605349,0.001,3869.3,3869.2,2.58451359]
[1761042605523,0.001,3869.3,3869.1,3.01545615]
[1761042607754,0.001,3869.3,3869.2,2.58451359]
[1761042607939,0.001,3869.3,3869.2,3.14221359]
[1761042608252,0.001,3869.3,3869.2,5.37709359]
[1761042608548,0.001,3869.7,3869.6,4.31224643]
[1761042608854,0.001,3869.7,3869.6,14.53046774]
[1761042609050,0.001,3869.7,3869.6,16.34490478]
[1761042609253,0.001,3869.7,3869.6,16.85178478]
[1761042609751,0.001,3869.7,3869.6,16.72298478]
[1761042609934,0.001,3869.7,3869.6,17.11088478]
[1761042611018,0.001,3870.1,3869.6,17.11088478]
[1761042611019,1e-08,3870.1,3869.6,19.83488478]
[1761042611214,0.001,3871.0,3870.2,3.09072579]
[1761042611414,1e-08,3870.7,3870.6,5.07755877]
[1761042611654,1e-08,3870.7,3870.6,14.96983762]
[1761042611817,1e-08,3870.7,3870.6,15.39873762]
[1761042612015,1e-08,3870.7,3870.6,15.502281]
[1761042612239,0.001,3871.0,3870.9,3.34935854]
[1761042612439,0.001,3871.0,3870.9,8.89405854]
[1761042612638,0.001,3872.6,3871.3,4.81799161]
[1761042612818,0.001,3872.6,3871.3,15.03620157]
[1761042613033,0.001,3872.6,3871.3,15.13917046]
[1761042613229,0.001,3872.6,3871.3,16.95926744]
[1761042613555,0.1041,3871.8,3871.3,1.82009698]
[1761042613718,0.1041,3871.8,3871.3,3.259]
[1761042613930,0.001,3871.8,3871.3,3.6879]
[1761042614146,0.001,3871.8,3871.3,3.259]
[1761042614533,0.2761,3871.8,3871.3,3.259]
[1761042615157,0.2761,3871.8,3870.8,0.2195]
[1761042615466,0.2761,3871.8,3870.9,3.258]
[1761042615670,0.001,3871.8,3871.0,0.39064]
[1761042615969,0.2761,3871.4,3871.0,0.39064]
[1761042616181,0.2761,3871.4,3871.1,3.258]
[1761042617874,0.001,3871.4,3871.2,2.58316239]
[1761042618042,0.001,3871.4,3871.1,5.8412278]
[1761042619370,0.001,3871.4,3871.1,3.258]
[1761042619767,0.001,3871.4,3871.1,5.84123986]
[1761042620374,0.001,3871.4,3871.1,3.258]
[1761042621268,0.001,3871.4,3871.1,5.84122337]
[1761042621471,0.001,3871.4,3871.1,5.84123787]
[1761042622479,0.001,3871.4,3871.2,2.58317477]
[1761042624971,0.001,3871.4,3871.1,5.97001938]
[1761042625979,0.001,3871.4,3871.1,3.3868]
[1761042626294,0.1008,3871.4,3871.1,3.3868]
[1761042630480,0.1008,3871.4,3871.1,5.9700396]
[1761042630777,0.001,3871.4,3871.1,5.97003049]
[1761042632694,0.001,3871.4,3871.2,2.58316936]
[1761042632885,0.001,3871.4,3871.3,2.58311161]
[1761042634114,0.001,3871.4,3871.3,4.02195175]
[1761042634428,0.001,3871.4,3871.3,4.04778286]
[1761042635624,0.001,3871.4,3871.3,4.02195175]
[1761042637417,0.001,3871.4,3871.3,3.58945175]
[1761042637730,0.001,3871.4,3871.3,7.27895175]
[1761042643150,0.001,3871.4,3871.3,6.84645175]
[1761042644222,0.001,3871.4,3871.3,7.27895175]
[1761042645161,0.001,3871.4,3871.3,13.05203138]
[1761042646756,0.40510731,3872.5,3871.3,13.05203138]
[1761042646757,0.33940417,3872.5,3872.1,2.58257792]
[1761042647058,0.001,3872.6,3872.1,2.58257792]
[1761042647059,0.001,3872.6,3872.5,10.59027079]
[1761042647260,0.001,3872.6,3872.5,13.86127079]
[1761042647558,0.001,3872.6,3872.5,14.29377079]
[1761042647763,0.001,3872.6,3872.5,14.52437079]
[1761042655044,0.001,3872.6,3872.5,14.65317079]
[1761042655263,0.001,3872.6,3872.5,17.00209607]
[1761042655654,0.001,3873.0,3872.9,4.81692446]
[1761042655944,0.001,3873.4,3872.9,4.81692446]
[1761042655945,0.001,3873.4,3873.3,2.58177781]
[1761042656168,0.001,3873.4,3873.3,14.01235521]
[1761042656382,0.001,3873.9,3873.8,2.58144457]
[1761042656561,0.001,3873.9,3873.8,14.5293156]
[1761042656879,0.001,3873.9,3873.8,14.93600116]
[1761042657080,0.001,3873.9,3873.8,15.0394658]
[1761042657479,0.001,3873.9,3873.8,14.93600116]
[1761042660761,0.001,3873.9,3873.8,9.16292153]
[1761042662081,0.001,3873.9,3873.8,8.65604153]
[1761042662655,0.001,3873.9,3873.8,9.16292153]
[1761042664086,0.001,3873.9,3873.8,5.89392153]
[1761042664384,0.001,3873.9,3873.8,8.72842153]
[1761042664787,0.001,3873.9,3873.8,4.95454153]
[1761042665084,0.001,3873.9,3873.8,8.22254153]
[1761042665293,0.2934,3873.9,3873.8,2.71024457]
[1761042665502,0.2934,3873.9,3872.9,0.2205]
[1761042665503,0.2934,3873.9,3872.7,8.35524377]
[1761042665799,0.0999,3873.8,3873.4,2.58169888]
[1761042666091,0.0999,3873.8,3873.5,3.268]
[1761042666253,0.0999,3873.8,3873.6,3.268]
[1761042667056,0.0999,3873.8,3873.7,2.58151121]
[1761042667259,0.0999,3873.8,3873.6,5.84957489]
[1761042668285,0.0999,3873.8,3873.7,2.58151121]
[1761042668685,0.0999,3873.8,3873.6,5.84955967]
[1761042668897,0.0999,3873.8,3873.6,3.268]
[1761042670808,0.0999,3873.8,3873.6,5.84957226]
[1761042670972,0.0999,3873.8,3873.7,2.58151121]
[1761042671312,0.1009,3873.8,3873.7,2.58151121]
[1761042674180,0.001,3873.8,3873.7,2.58151121]
[1761042674376,0.001,3873.8,3873.7,2.60732632]
[1761042675375,0.001,3873.8,3873.7,2.73612632]
[1761042676084,0.001,3873.8,3873.7,2.71031121]
[1761042676602,0.001,3873.8,3873.7,0.1288]
[1761042676910,0.1,3873.8,3873.7,2.166]
[1761042677199,0.2288,3873.8,3873.7,2.166]
[1761042678305,0.2288,3873.8,3873.5,3.3948]
[1761042678496,0.099,3873.7,3873.5,5.97644119]
[1761042678676,0.099,3873.7,3873.5,3.3948]
[1761042681106,0.099,3873.7,3873.5,5.97641546]
[1761042681411,0.099,3873.7,3873.5,3.3948]
[1761042682677,0.099,3873.7,3873.5,5.97638372]
[1761042683110,0.099,3873.7,3873.6,2.58157786]
[1761042683315,0.1298,3873.8,3873.7,2.58151121]
[1761042683711,0.2288,3873.8,3873.7,2.58151121]